bitfinex-derivatives/quotes_BTCF0:USTF0_20240824
["timestamp","ask_amount","ask_price","bid_price","bid_amount"]
[1724484126346,0.02627362,64249.0,64248.0,0.530618]
[1724484126741,0.19405062,64249.0,64248.0,0.36284]
[1724484126948,0.10405062,64249.0,64248.0,0.36284]
[1724484127445,0.10405062,64249.0,64248.0,0.00204]
[1724484127642,0.28726709,64249.0,64248.0,0.00204]
[1724484127841,0.13409543,64249.0,64248.0,0.00204]
[1724484128045,0.10405062,64249.0,64248.0,0.00204]
[1724484131966,0.1972777,64249.0,64248.0,0.00204]
[1724484134859,0.1195007,64249.0,64248.0,0.00204]
[1724484135051,0.10405062,64249.0,64248.0,0.00204]
[1724484135257,0.1972777,64249.0,64248.0,0.00204]
[1724484135656,0.10405062,64249.0,64248.0,0.00204]
[1724484136061,0.1972777,64249.0,64248.0,0.00204]
[1724484136863,0.10405062,64249.0,64248.0,0.00204]
[1724484138260,0.19730905,64249.0,64248.0,0.00204]
[1724484140160,0.10405062,64249.0,64248.0,0.00204]
[1724484140366,0.19730905,64249.0,64248.0,0.00204]
[1724484140662,0.10405062,64249.0,64248.0,0.00204]
[1724484141563,0.19730905,64249.0,64248.0,0.00204]
[1724484141764,0.10405062,64249.0,64248.0,0.00204]
[1724484141958,0.19732402,64249.0,64248.0,0.00204]
[1724484142462,0.02627362,64249.0,64248.0,0.00204]
[1724484142659,0.02627362,64249.0,64248.0,0.09204]
[1724484142861,0.02627362,64249.0,64248.0,0.00204]
[1724484143055,0.02627362,64249.0,64248.0,0.09204]
[1724484143569,0.05148919,64249.0,64248.0,0.09204]
[1724484145469,0.02627362,64249.0,64248.0,0.45284]
[1724484146361,0.02627362,64249.0,64248.0,0.36284]
[1724484146565,0.0514892,64249.0,64248.0,0.36284]
[1724484148065,0.02627362,64249.0,64248.0,0.36284]
[1724484148267,0.05148829,64249.0,64248.0,0.36284]
[1724484149865,0.10405062,64249.0,64248.0,0.36284]
[1724484150062,0.10405062,64249.0,64248.0,0.45284]
[1724484150467,0.1292662,64249.0,64248.0,0.45284]
[1724484150663,0.1292662,64249.0,64248.0,0.09204]
[1724484150867,0.1292662,64249.0,64248.0,0.45284]
[1724484151473,0.2192662,64249.0,64248.0,0.36284]
[1724484151768,0.19405062,64249.0,64248.0,0.36284]
[1724484152470,0.19405062,64249.0,64248.0,0.45284]
[1724484152471,0.19732402,64249.0,64248.0,0.45284]
[1724484152661,0.10405062,64249.0,64248.0,0.45284]
[1724484154567,0.10405062,64249.0,64248.0,0.09204]
[1724484155760,0.19735023,64249.0,64248.0,0.09204]
[1724484155961,0.10405062,64249.0,64248.0,0.09204]
[1724484156264,0.19735023,64249.0,64248.0,0.09204]
[1724484156461,0.10405062,64249.0,64248.0,0.09204]
[1724484157472,0.19735023,64249.0,64248.0,0.09204]
[1724484157776,0.10405062,64249.0,64248.0,0.09204]
[1724484158179,0.19735023,64249.0,64248.0,0.09204]
[1724484158569,0.19735023,64249.0,64248.0,0.00204]
[1724484158874,0.10405062,64249.0,64248.0,0.00204]
[1724484176082,0.1340945,64249.0,64248.0,0.00204]
[1724484177990,0.13409459,64249.0,64248.0,0.00204]
[1724484182981,0.10405062,64249.0,64248.0,0.00204]
[1724484190888,0.13409448,64249.0,64248.0,0.00204]
[1724484191394,0.24268258,64249.0,64248.0,0.00204]
[1724484191581,0.13409541,64249.0,64248.0,0.00204]
[1724484191781,0.24268258,64249.0,64248.0,0.00204]
[1724484192187,0.13409541,64249.0,64248.0,0.00204]
[1724484196281,0.18289541,64249.0,64248.0,0.00204]
[1724484205497,0.077787,64243.0,64240.0,0.4064]
[1724484205696,0.09,64241.0,64240.0,0.4064]
[1724484205886,0.09,64241.0,64240.0,0.43072149]
[1724484206297,0.09004,64241.0,64240.0,0.43072149]
[1724484206599,0.09004,64241.0,64240.0,0.38512149]
[1724484206799,0.09004,64241.0,64240.0,0.3608]
[1724484207099,0.09004,64241.0,64240.0,0.3618]
[1724484207602,0.09004,64241.0,64240.0,0.3608]
[1724484207792,0.10204,64241.0,64240.0,0.3618]
[1724484208190,0.28716113,64241.0,64240.0,0.002]
[1724484208390,0.22387756,64241.0,64240.0,0.002]
[1724484208592,0.26197245,64241.0,64240.0,0.002]
[1724484209097,0.37082861,64241.0,64240.0,0.002]
[1724484209290,0.261974,64241.0,64240.0,0.002]
[1724484210095,0.33269802,64241.0,64240.0,0.002]
[1724484210295,0.22387756,64241.0,64240.0,0.002]
[1724484210499,0.23923694,64241.0,64240.0,0.002]
[1724484211691,0.23923921,64241.0,64240.0,0.002]
[1724484212896,0.31702821,64241.0,64240.0,0.002]
[1724484213794,0.22702821,64241.0,64240.0,0.002]
[1724484213993,0.71702821,64241.0,64240.0,0.002]
[1724484214195,0.71702821,64241.0,64237.0,0.00023362]
[1724484214196,0.077792,64238.0,64237.0,0.00023362]
[1724484214397,0.19784283,64238.0,64237.0,0.00023362]
[1724484215299,0.20888283,64238.0,64237.0,0.00123362]
[1724484216092,0.56968283,64238.0,64237.0,0.00123362]
[1724484216699,0.57868283,64238.0,64237.0,0.00223362]
[1724484218107,0.48868283,64238.0,64237.0,0.00223362]
[1724484218301,0.57868283,64238.0,64237.0,0.00223362]
[1724484220504,0.57868378,64238.0,64237.0,0.00223362]
[1724484221213,0.48868378,64238.0,64237.0,0.00223362]
[1724484221403,0.57868378,64238.0,64237.0,0.00223362]
[1724484222311,0.548632,64238.0,64237.0,0.00223362]
[1724484223107,0.57868364,64238.0,64237.0,0.00223362]
[1724484223612,0.48868364,64238.0,64237.0,0.00223362]
[1724484223815,0.548632,64238.0,64237.0,0.00223362]
[1724484224300,0.458632,64238.0,64237.0,0.00223362]
[1724484224506,0.548632,64238.0,64237.0,0.00223362]
[1724484226105,0.38084,64238.0,64237.0,0.00223362]
[1724484226306,0.47084,64238.0,64237.0,0.00223362]
[1724484227510,0.56398879,64238.0,64237.0,0.00223362]
[1724484228210,0.02004,64238.0,64237.0,0.00223362]
[1724484228516,0.1131938,64238.0,64237.0,0.04993362]
[1724484228712,0.02004,64238.0,64237.0,0.04993362]
[1724484229015,0.11004,64238.0,64237.0,0.04993362]
[1724484229400,0.2031938,64238.0,64237.0,0.04993362]
[1724484231319,0.1131938,64238.0,64237.0,0.04993362]
[1724484231809,0.02004,64238.0,64237.0,0.04993362]
[1724484232219,0.1131938,64238.0,64237.0,0.04993362]
[1724484232718,0.2031938,64238.0,64237.0,0.04993362]
[1724484232915,0.11004,64238.0,64237.0,0.04993362]
[1724484233815,0.2031938,64238.0,64237.0,0.04993362]
[1724484234013,0.11004,64238.0,64237.0,0.04993362]
[1724484234316,0.2031938,64238.0,64237.0,0.04993362]
[1724484234518,0.11004,64238.0,64237.0,0.04993362]
[1724484234816,0.11004,64238.0,64237.0,0.00223362]
[1724484235513,0.02004,64238.0,64237.0,0.00223362]
[1724484235718,0.11004,64238.0,64237.0,0.00223362]
[1724484239012,0.20327314,64238.0,64237.0,0.00223362]
[1724484239220,0.11004,64238.0,64237.0,0.00223362]
[1724484239427,0.20327314,64238.0,64237.0,0.00223362]
[1724484239911,0.11004,64238.0,64237.0,0.00223362]
[1724484241626,0.20331881,64238.0,64237.0,0.00223362]
[1724484244521,0.20331349,64238.0,64237.0,0.00223362]
[1724484245619,0.11004,64238.0,64237.0,0.00223362]
[1724484248636,0.20331349,64238.0,64237.0,0.00223362]
[1724484249637,0.11004,64238.0,64237.0,0.00223362]
[1724484250835,0.187832,64238.0,64237.0,0.00223362]
[1724484252549,0.57868182,64238.0,64237.0,0.00223362]
[1724484255851,0.21788182,64238.0,64237.0,0.00223362]
[1724484256038,0.57868182,64238.0,64237.0,0.00223362]
[1724484256238,0.68750228,64238.0,64237.0,0.00223362]
[1724484256442,0.57868182,64238.0,64237.0,0.00223362]
[1724484256638,0.50088982,64238.0,64226.0,0.01496276]
[1724484256844,0.18328643,64227.0,64221.0,0.0486]
[1724484257043,0.09,64222.0,64221.0,0.0486]
[1724484257747,0.09004,64222.0,64221.0,0.0486]
[1724484257945,0.09004,64222.0,64221.0,0.0556]
[1724484258654,0.16773825,64222.0,64221.0,0.0556]
[1724484259155,0.09004,64222.0,64221.0,0.007]
[1724484259347,0.168851,64222.0,64221.0,0.014]
[1724484259545,0.168851,64222.0,64221.0,0.007]
[1724484259855,0.169851,64222.0,64221.0,0.014]
[1724484261849,0.18496054,64222.0,64221.0,0.014]
[1724484271258,0.01714954,64222.0,64221.0,0.014]
[1724484271561,0.09476,64222.0,64221.0,0.014]
[1724484272357,0.01714954,64222.0,64221.0,0.014]
[1724484272574,0.10714954,64222.0,64221.0,0.014]
[1724484277752,0.00204,64222.0,64221.0,0.014]
[1724484277957,0.09204,64222.0,64221.0,0.014]
[1724484278158,0.09204,64222.0,64221.0,0.0606]
[1724484279460,0.16965046,64222.0,64221.0,0.0606]
[1724484280455,0.09204,64222.0,64221.0,0.07556029]
[1724484280853,0.09204,64222.0,64221.0,0.0606]
[1724484282360,0.00204,64222.0,64221.0,0.0606]
[1724484282553,0.07977905,64222.0,64221.0,0.0606]
[1724484283463,0.00204,64222.0,64221.0,0.0606]
[1724484284660,0.07977905,64222.0,64221.0,0.0606]
[1724484286059,0.07977905,64222.0,64221.0,0.4214]
[1724484286561,0.07977905,64222.0,64221.0,0.499212]
[1724484286767,0.00204,64222.0,64221.0,0.499212]
[1724484289160,0.09204,64222.0,64221.0,0.499212]
[1724484289356,0.169851,64222.0,64221.0,0.3748]
[1724484290264,0.169851,64222.0,64221.0,0.014]
[1724484290969,0.26313743,64222.0,64221.0,0.014]
[1724484291965,0.18532643,64222.0,64221.0,0.014]
[1724484293768,0.169851,64222.0,64221.0,0.014]
[1724484298568,0.19990819,64222.0,64221.0,0.014]
[1724484301374,0.19990861,64222.0,64221.0,0.014]
[1724484302383,0.56070861,64222.0,64221.0,0.014]
[1724484305880,0.530651,64222.0,64221.0,0.014]
[1724484306976,0.56070792,64222.0,64221.0,0.014]
[1724484307284,0.56070787,64222.0,64221.0,0.014]
[1724484307479,0.530651,64222.0,64221.0,0.014]
[1724484311790,0.62394454,64222.0,64221.0,0.014]
[1724484312084,0.00204,64222.0,64221.0,0.014]
[1724484317487,0.00204,64222.0,64221.0,0.181812]
[1724484317991,0.07981077,64222.0,64221.0,0.22808835]
[1724484318186,0.00204,64222.0,64221.0,0.22808835]
[1724484319085,0.00204,64222.0,64221.0,0.25241579]
[1724484319989,0.00204,64222.0,64221.0,0.13808835]
[1724484320189,0.00204,64222.0,64221.0,0.091812]
[1724484320588,0.09204,64222.0,64221.0,0.091812]
[1724484321985,0.09204,64222.0,64221.0,0.452612]
[1724484322392,0.16981077,64222.0,64221.0,0.452612]
[1724484323095,0.09204,64222.0,64221.0,0.47693958]
[1724484324390,0.09204,64222.0,64221.0,0.452612]
[1724484327286,0.16981077,64222.0,64221.0,0.452612]
[1724484329087,0.07981077,64222.0,64221.0,0.452612]
[1724484329291,0.06217703,64224.0,64223.0,0.07781]
[1724484329590,0.06241065,64228.0,64224.0,0.09]
[1724484329794,0.06241065,64228.0,64227.0,0.4508]
[1724484329989,0.06241065,64228.0,64227.0,0.55293269]
[1724484330298,0.00023362,64228.0,64227.0,1.42005269]
[1724484330492,0.00023362,64228.0,64227.0,5.19005269]
[1724484331092,0.00023362,64228.0,64227.0,4.82925269]
[1724484331295,0.00023362,64228.0,64227.0,5.55085269]
[1724484331497,0.00023362,64228.0,64227.0,5.59738522]
[1724484332303,0.00023362,64228.0,64227.0,5.61243629]
[1724484332799,0.00023362,64228.0,64227.0,5.61343629]
[1724484333191,0.00023362,64228.0,64227.0,5.54257607]
[1724484333396,0.00023362,64228.0,64227.0,5.61569955]
[1724484333597,0.00023362,64228.0,64227.0,5.66219955]
[1724484334598,0.00023362,64228.0,64227.0,5.26219955]
[1724484334898,0.00023362,64228.0,64227.0,5.66219955]
[1724484335100,0.00023362,64228.0,64227.0,5.74000455]
[1724484335294,0.00023362,64228.0,64227.0,5.66219955]
[1724484335696,0.00023362,64228.0,64227.0,5.72418749]
[1724484336198,0.00023362,64228.0,64227.0,5.66219955]
[1724484336602,0.00023362,64228.0,64227.0,5.66219788]
[1724484337199,0.00023362,64228.0,64227.0,4.94059788]
[1724484337398,0.00023362,64228.0,64227.0,5.66219788]
[1724484339005,0.00023362,64228.0,64227.0,4.94059788]
[1724484339200,0.00023362,64228.0,64227.0,5.66219788]
[1724484339402,0.00023362,64228.0,64227.0,5.74000288]
[1724484339803,0.00023362,64228.0,64227.0,5.66219788]
[1724484340607,0.00023362,64228.0,64227.0,5.74000288]
[1724484340909,0.00023362,64228.0,64227.0,5.66219788]
[1724484341306,0.00023362,64228.0,64227.0,5.74000288]
[1724484341698,0.00023362,64228.0,64227.0,5.66219788]
[1724484342698,0.00023362,64228.0,64227.0,5.74000288]
[1724484343011,0.00023362,64228.0,64227.0,5.74000206]
[1724484344715,0.00023362,64228.0,64227.0,5.66219706]
[1724484345215,0.00023362,64228.0,64227.0,5.74000206]
[1724484345916,0.00023362,64228.0,64227.0,5.01840206]
[1724484346109,0.00023362,64228.0,64227.0,5.74000206]
[1724484346311,0.00023362,64228.0,64227.0,5.71568107]
[1724484346512,0.00023362,64228.0,64227.0,5.74000206]
[1724484346712,0.00023362,64228.0,64227.0,5.71568107]
[1724484347015,0.00023362,64228.0,64227.0,5.01840206]
[1724484347211,0.00023362,64228.0,64227.0,5.74000206]
[1724484349309,0.00023362,64228.0,64227.0,5.80199]
[1724484349812,0.00023362,64228.0,64227.0,5.80198981]
[1724484350114,0.00023362,64228.0,64227.0,5.74000187]
[1724484351109,0.00023362,64228.0,64227.0,5.80198981]
[1724484352912,0.00023362,64228.0,64227.0,5.80198998]
[1724484355111,0.00023362,64228.0,64227.0,5.74000204]
[1724484356721,0.00023362,64228.0,64227.0,4.99408107]
[1724484356912,0.00023362,64228.0,64227.0,5.74000207]
[1724484357313,0.00023362,64228.0,64227.0,5.01840207]
[1724484357709,0.00023362,64228.0,64227.0,5.74000207]
[1724484358722,0.00023362,64228.0,64227.0,5.69350207]
[1724484359112,0.00023362,64228.0,64227.0,5.8120329]
[1724484359813,0.00023362,64228.0,64227.0,5.7877119]
[1724484360021,0.00023362,64228.0,64227.0,5.8120329]
[1724484360210,0.00023362,64228.0,64227.0,5.0904329]
[1724484360414,0.00023362,64228.0,64227.0,5.8120329]
[1724484361026,0.00023362,64228.0,64227.0,5.6732329]
[1724484361218,0.00023362,64228.0,64227.0,5.7632329]
[1724484362011,0.00023362,64228.0,64227.0,5.76323295]
[1724484362723,0.00023362,64228.0,64227.0,5.04163295]
[1724484362919,0.00023362,64228.0,64227.0,5.76323295]
[1724484365830,0.00023362,64228.0,64227.0,5.7389119]
[1724484366031,0.00023362,64228.0,64227.0,5.76323295]
[1724484367820,0.00023362,64228.0,64227.0,5.04163295]
[1724484368121,0.00023362,64228.0,64227.0,5.76323295]
[1724484368727,0.00023362,64228.0,64227.0,5.7389119]
[1724484368921,0.00023362,64228.0,64227.0,5.7632332]
[1724484369123,0.00023362,64228.0,64227.0,5.0416332]
[1724484369434,0.00023362,64228.0,64227.0,5.7632332]
[1724484370426,0.00023362,64228.0,64227.0,4.8961532]
[1724484372037,0.00023362,64228.0,64227.0,4.87183215]
[1724484372223,0.00023362,64228.0,64227.0,4.89615322]
[1724484373728,0.00023362,64228.0,64227.0,4.81834822]
[1724484374028,0.00023362,64228.0,64227.0,4.89615322]
[1724484374534,0.00023362,64228.0,64227.0,4.81834822]
[1724484375031,0.00023362,64228.0,64227.0,4.89615322]
[1724484375226,0.00023362,64228.0,64227.0,4.79402715]
[1724484375534,0.00023362,64228.0,64227.0,4.91561018]
[1724484375735,0.00023362,64228.0,64227.0,4.89128905]
[1724484375936,0.00023362,64228.0,64227.0,4.91561018]
[1724484376234,0.00023362,64228.0,64227.0,4.83780518]
[1724484376825,0.00023362,64228.0,64227.0,4.91561018]
[1724484377334,0.00023362,64228.0,64227.0,4.19401018]
[1724484377534,0.00023362,64228.0,64227.0,4.91561018]
[1724484378834,0.00023362,64228.0,64227.0,4.91561057]
[1724484379231,0.04690297,64228.0,64227.0,4.91561057]
[1724484380437,0.04690297,64228.0,64227.0,4.83780557]
[1724484380929,0.04690297,64228.0,64227.0,4.91561057]
[1724484381433,0.04690297,64228.0,64227.0,4.19401057]
[1724484381630,0.04690297,64228.0,64227.0,4.91561057]
[1724484382041,0.04690297,64228.0,64227.0,4.19401057]
[1724484382229,0.04690297,64228.0,64227.0,4.91561057]
[1724484385140,0.04690297,64228.0,64227.0,4.89615367]
[1724484385535,0.00023362,64228.0,64227.0,4.19401057]
[1724484385836,0.00023362,64228.0,64227.0,4.91561057]
[1724484388241,0.00023362,64228.0,64227.0,4.19401057]
[1724484388534,0.00023362,64228.0,64227.0,4.87183254]
[1724484388837,0.00023362,64228.0,64227.0,4.89615367]
[1724484389138,0.00023362,64228.0,64227.0,4.91561057]
[1724484390434,0.00023362,64228.0,64227.0,4.74780557]
[1724484390839,0.00023362,64228.0,64227.0,0.90207953]
[1724484390840,0.07801094,64228.0,64227.0,0.90207953]
[1724484391028,0.07801094,64228.0,64227.0,0.9298172]
[1724484391029,0.00023362,64228.0,64227.0,0.9298172]
[1724484391229,0.00023362,64228.0,64227.0,0.97651656]
[1724484391437,0.00023362,64228.0,64227.0,0.8398172]
[1724484391630,0.46731362,64228.0,64227.0,0.82476613]
[1724484391836,0.46731362,64228.0,64227.0,0.87147072]
[1724484392732,0.46731362,64228.0,64227.0,0.82477136]
[1724484393040,0.54511762,64228.0,64227.0,0.82477136]
[1724484393446,0.54511762,64228.0,64227.0,0.800445]
[1724484394542,0.62278716,64228.0,64227.0,0.800445]
[1724484394749,0.62278716,64228.0,64227.0,0.078845]
[1724484395742,0.54511762,64228.0,64227.0,0.078845]
[1724484399653,0.54511762,64228.0,64227.0,0.168845]
[1724484399949,0.00023362,64228.0,64227.0,0.168845]
[1724484402457,0.06227434,64228.0,64227.0,0.168845]
[1724484404264,0.06227434,64228.0,64227.0,0.529645]
[1724484407158,0.00023362,64228.0,64227.0,0.529645]
[1724484408163,0.00023362,64228.0,64227.0,0.168845]
[1724484408363,0.00023362,64228.0,64227.0,0.529645]
[1724484413469,0.00023362,64228.0,64227.0,0.168845]
[1724484413660,0.00023362,64228.0,64227.0,0.529645]
[1724484413860,0.00023362,64228.0,64227.0,0.55397046]
[1724484414573,0.00023362,64228.0,64227.0,0.19317046]
[1724484414764,0.00023362,64228.0,64227.0,0.55397046]
[1724484415358,0.00023362,64228.0,64227.0,0.529645]
[1724484419367,0.07790316,64228.0,64227.0,0.529645]
[1724484420075,0.07790316,64228.0,64227.0,0.168845]
[1724484420267,0.07790316,64228.0,64227.0,0.529645]
[1724484420573,0.00023362,64228.0,64227.0,0.529645]
[1724484420779,0.00023362,64228.0,64227.0,0.168845]
[1724484421068,0.15576605,64228.0,64227.0,0.36184]
[1724484421273,0.63841116,64228.0,64227.0,0.00104]
[1724484421468,0.63691762,64228.0,64227.0,0.00104]
[1724484421972,0.68631762,64228.0,64227.0,0.00104]
[1724484422277,1.08631762,64228.0,64227.0,0.00104]
[1724484422863,1.00851362,64228.0,64221.0,0.3608]
[1724484423072,0.09,64222.0,64221.0,0.3608]
[1724484423662,0.09004,64222.0,64221.0,0.3608]
[1724484423876,0.167851,64222.0,64221.0,0.3608]
[1724484424176,0.168851,64222.0,64221.0,0.3748]
[1724484424375,0.26211674,64222.0,64221.0,0.3748]
[1724484425266,0.26211674,64222.0,64221.0,0.3678]
[1724484425466,0.169851,64222.0,64221.0,0.3748]
[1724484426563,0.169851,64222.0,64221.0,0.014]
[1724484427164,0.079851,64222.0,64221.0,0.104]
[1724484427473,0.07964682,64222.0,64221.0,0.104]
[1724484427675,0.00204,64222.0,64221.0,0.104]
[1724484427969,0.00204,64222.0,64221.0,0.181812]
[1724484428772,0.00204,64222.0,64221.0,3.951812]
[1724484429367,0.00204,64222.0,64221.0,3.97613877]
[1724484429566,0.00204,64222.0,64221.0,3.99848738]
[1724484429767,0.06408893,64222.0,64221.0,4.02281417]
[1724484429966,0.06408893,64222.0,64221.0,3.97613879]
[1724484430277,0.00204,64222.0,64221.0,3.97613879]
[1724484430876,0.06408893,64222.0,64221.0,3.97613879]
[1724484431175,0.00204,64222.0,64221.0,3.97613879]
[1724484431375,0.06408893,64222.0,64221.0,3.97613879]
[1724484432662,0.06408893,64222.0,64221.0,3.951812]
[1724484433075,0.00204,64222.0,64221.0,3.951812]
[1724484433274,0.06412461,64222.0,64221.0,3.951812]
[1724484433480,0.00204,64222.0,64221.0,3.951812]
[1724484434276,0.06413614,64222.0,64221.0,3.951812]
[1724484434475,0.06413373,64222.0,64221.0,3.951812]
[1724484434772,0.06413373,64222.0,64221.0,3.97613874]
[1724484434976,0.06413373,64222.0,64221.0,4.33693874]
[1724484435178,0.06413373,64222.0,64221.0,4.312612]
[1724484435375,0.06413373,64222.0,64221.0,4.33693869]
[1724484436673,0.00204,64222.0,64221.0,4.33693869]
[1724484436875,0.00204,64222.0,64221.0,3.97613869]
[1724484437074,0.00204,64222.0,64221.0,4.33693869]
[1724484437477,0.00204,64222.0,64221.0,4.312612]
[1724484437673,0.00204,64222.0,64221.0,3.97613866]
[1724484437872,0.00204,64222.0,64221.0,4.33693866]
[1724484439576,0.00204,64222.0,64221.0,4.38356228]
[1724484440369,0.00204,64222.0,64221.0,4.35923562]
[1724484440573,0.00204,64222.0,64221.0,4.38356228]
[1724484441378,0.00204,64222.0,64221.0,4.33693866]
[1724484442181,0.00204,64222.0,64221.0,3.97613866]
[1724484442383,0.00204,64222.0,64221.0,4.33693866]
[1724484442575,0.00204,64222.0,64221.0,3.97613866]
[1724484442775,0.00204,64222.0,64221.0,4.33693866]
[1724484444179,0.00204,64222.0,64221.0,3.97613866]
[1724484444387,0.00204,64222.0,64221.0,4.312612]
[1724484445383,0.00204,64222.0,64221.0,4.33693873]
[1724484447875,0.00204,64222.0,64221.0,4.33693876]
[1724484449583,0.00204,64222.0,64221.0,3.97613876]
[1724484449783,0.00204,64222.0,64221.0,4.33693876]
[1724484449974,0.00204,64222.0,64221.0,0.56693876]
[1724484450175,0.07964682,64222.0,64221.0,0.542612]
[1724484451683,0.15745782,64222.0,64221.0,0.4648]
[1724484451884,0.15745782,64222.0,64221.0,0.3748]
[1724484452083,0.079851,64222.0,64221.0,0.3748]
[1724484452287,0.079851,64222.0,64221.0,0.014]
[1724484452482,0.17311674,64222.0,64221.0,0.104]
[1724484452687,0.079851,64222.0,64221.0,0.104]
[1724484470405,0.079851,64222.0,64221.0,0.014]
[1724484476105,0.17312949,64222.0,64221.0,0.014]
[1724484477907,0.64024949,64222.0,64221.0,0.014]
[1724484478099,0.546971,64222.0,64221.0,0.014]
[1724484478607,0.10990771,64222.0,64221.0,0.014]
[1724484479907,0.10990787,64222.0,64221.0,0.014]
[1724484480413,0.079851,64222.0,64221.0,0.014]
[1724484480907,0.10990788,64222.0,64221.0,0.014]
[1724484486710,0.079851,64222.0,64221.0,0.014]
[1724484487708,0.10990789,64222.0,64221.0,0.014]
[1724484491517,0.19990789,64222.0,64221.0,0.014]
[1724484500212,0.19990768,64222.0,64221.0,0.014]
[1724484501209,0.169851,64222.0,64221.0,0.014]
[1724484501614,0.19990739,64222.0,64221.0,0.014]
[1724484502418,0.169851,64222.0,64221.0,0.014]
[1724484502611,0.19990762,64222.0,64221.0,0.014]
[1724484503619,0.169851,64222.0,64221.0,0.014]
[1724484505613,0.00099999,64222.0,64221.0,1.43406152]
[1724484505817,0.00099999,64222.0,64221.0,1.55849382]
[1724484506017,0.00023362,64228.0,64225.0,0.077807]
[1724484506212,0.07788537,64228.0,64227.0,0.4508]
[1724484506420,0.00023362,64228.0,64227.0,0.5223262]
[1724484506721,0.00023362,64228.0,64227.0,0.61962935]
[1724484506922,0.00023362,64228.0,64227.0,4.3701712]
[1724484508018,0.00023362,64228.0,64227.0,4.43329969]
[1724484508213,0.00023362,64228.0,64227.0,4.3711712]
[1724484509021,0.00023362,64228.0,64227.0,5.2382512]
[1724484509818,0.00023362,64228.0,64227.0,5.5990512]
[1724484510219,0.00023362,64228.0,64227.0,5.64557603]
[1724484511222,0.00023362,64228.0,64227.0,5.5990512]
[1724484511617,0.00023362,64228.0,64227.0,5.64557603]
[1724484512214,0.00023362,64228.0,64227.0,5.5990512]
[1724484513224,0.00023362,64228.0,64227.0,5.574725]
[1724484513629,0.00023362,64228.0,64227.0,5.67685151]
[1724484513819,0.00012,64242.0,64241.0,0.077788]
[1724484514025,0.00012,64242.0,64241.0,0.438588]
[1724484514615,0.00012,64242.0,64241.0,0.438628]
[1724484515020,0.01412,64242.0,64241.0,0.439628]
[1724484515425,0.01412,64242.0,64241.0,0.45523967]
[1724484515821,0.02712,64242.0,64241.0,0.45623967]
[1724484517124,0.02712,64242.0,64241.0,0.50473967]
[1724484518030,0.02712,64242.0,64241.0,0.59473967]
[1724484519130,0.02712,64242.0,64241.0,0.530628]
[1724484519325,0.02712,64242.0,64241.0,0.440628]
[1724484522823,0.04254108,64242.0,64241.0,0.440628]
[1724484523232,0.04254108,64242.0,64241.0,0.530628]
[1724484524126,0.04254108,64242.0,64241.0,0.169828]
[1724484524535,0.04254108,64242.0,64241.0,0.09204]
[1724484524829,0.04254108,64242.0,64241.0,0.00204]
[1724484528131,0.04254108,64242.0,64241.0,0.09204]
[1724484530128,0.02712,64242.0,64241.0,0.169828]
[1724484530728,0.07360444,64242.0,64241.0,0.169828]
[1724484531126,0.02712,64242.0,64241.0,0.169828]
[1724484533236,0.0892531,64242.0,64241.0,0.530628]
[1724484533937,0.0892531,64242.0,64241.0,0.169828]
[1724484534231,0.02712,64242.0,64241.0,0.530628]
[1724484537132,0.02712,64242.0,64241.0,0.57715283]
[1724484538634,0.02712,64242.0,64241.0,0.26305283]
[1724484538947,0.02712,64242.0,64241.0,0.62385283]
[1724484539534,0.02712,64242.0,64241.0,0.26305283]
[1724484539736,0.02712,64242.0,64241.0,0.62385283]
[1724484540043,0.02712,64242.0,64241.0,0.26305283]
[1724484540236,0.02712,64242.0,64241.0,0.577328]
[1724484540639,0.02712,64242.0,64241.0,0.62385283]
[1724484543742,0.02712,64242.0,64241.0,0.577328]
[1724484550044,0.02712,64242.0,64241.0,0.62385283]
[1724484550543,0.02712,64242.0,64241.0,0.577328]
[1724484550749,0.02712,64242.0,64241.0,0.60164557]
[1724484551445,0.02712,64242.0,64241.0,0.577328]
[1724484551651,0.02712,64242.0,64241.0,0.6016462]
[1724484551849,0.02712,64242.0,64241.0,0.2408462]
[1724484552046,0.02712,64242.0,64241.0,0.9624462]
[1724484555253,0.02712,64242.0,64241.0,0.96244621]
[1724484558255,0.02712,64242.0,64241.0,0.96244636]
[1724484559745,0.02712,64242.0,64241.0,0.91574636]
[1724484560148,0.02712,64242.0,64241.0,0.19414636]
[1724484560355,0.02712,64242.0,64241.0,0.91574636]
[1724484563551,0.02712,64242.0,64241.0,0.19414636]
[1724484563754,0.02712,64242.0,64241.0,0.91574636]
[1724484565250,0.02712,64242.0,64241.0,0.97787485]
[1724484566148,0.02712,64242.0,64241.0,0.91574636]
[1724484566751,0.15337175,64242.0,64241.0,0.91574636]
[1724484566952,0.19877175,64242.0,64241.0,0.91574636]
[1724484567960,0.12112,64242.0,64241.0,0.91574636]
[1724484568353,0.14633684,64242.0,64241.0,0.91574636]
[1724484569053,0.14633684,64242.0,64241.0,0.55494636]
[1724484571863,0.14633684,64242.0,64241.0,0.19414636]
[1724484572059,0.14633684,64242.0,64241.0,0.55494636]
[1724484572654,0.14633686,64242.0,64241.0,0.19414636]
[1724484572854,0.14633686,64242.0,64241.0,0.55494636]
[1724484573960,0.12112,64242.0,64241.0,0.55494636]
[1724484574168,0.12112,64242.0,64241.0,0.19414636]
[1724484574470,0.12112,64242.0,64241.0,0.530628]
[1724484574759,0.12112,64242.0,64241.0,0.55494747]
[1724484575863,0.12112,64242.0,64241.0,0.19414747]
[1724484576064,0.12112,64242.0,64241.0,0.55494747]
[1724484577058,0.12112,64242.0,64241.0,0.19414747]
[1724484577261,0.12112,64242.0,64241.0,0.55494747]
[1724484578061,0.12112,64242.0,64241.0,0.19414747]
[1724484578366,0.12112,64242.0,64241.0,0.55494747]
[1724484578762,0.12112,64242.0,64241.0,0.19414747]
[1724484578961,0.12112,64242.0,64241.0,0.55494747]
[1724484579759,0.12112,64242.0,64241.0,0.19414747]
[1724484579961,0.12112,64242.0,64241.0,0.55494747]
[1724484580360,0.12112,64242.0,64241.0,0.19414747]
[1724484580666,0.14633686,64242.0,64241.0,0.60160355]
[1724484580866,0.14633686,64242.0,64241.0,0.57728413]
[1724484581061,0.14633686,64242.0,64241.0,0.60160364]
[1724484581673,0.05233686,64242.0,64241.0,0.60160364]
[1724484582665,0.0523369,64242.0,64241.0,0.60160364]
[1724484583660,0.02712,64242.0,64241.0,0.55494751]
[1724484584167,0.02712,64242.0,64241.0,0.55494627]